[Event "Schack-SM 2023: Veteran-SM 50+"]
[Site "Helsingborg Arena, Mellersta Stenbocksgatan 14, Helsingborg, Sweden"]
[Date "2023.07.02"]
[Round "2.6"]
[White "Andersson, Bjorn 1961"]
[Black "Andersen, Martin"]
[Result "1-0"]
[TimeControl "90 minutes for 40 moves + 30 minutes for the rest of games + 30 seconds per move from move one."]
[WhiteElo "1791"]
[BlackElo "1616"]

1. e4 {[%clk 01:30:32]} {[%emt 00:00:28]} c5 {[%clk 01:30:38]} {[%emt
00:00:22]} 2. g3 {[%clk 01:30:25]} {[%emt 00:00:37]} Nc6 {[%clk 01:30:12]}
{[%emt 00:00:56]} 3. Ne2 {[%clk 01:30:38]} {[%emt 00:00:17]} d6 {[%clk
01:30:11]} {[%emt 00:00:30]} 4. Bg2 {[%clk 01:30:53]} {[%emt 00:00:15]} e5
{[%clk 01:29:33]} {[%emt 00:01:09]} 5. O-O {[%clk 01:30:53]} {[%emt 00:00:30]}
Be7 {[%clk 01:28:57]} {[%emt 00:01:06]} 6. c3 {[%clk 01:30:42]} {[%emt
00:00:41]} Nf6 {[%clk 01:28:59]} {[%emt 00:00:28]} 7. Na3 {[%clk 01:30:06]}
{[%emt 00:01:06]} O-O {[%clk 01:27:31]} {[%emt 00:01:58]} 8. d4 {[%clk
01:29:29]} {[%emt 00:01:07]} cxd4 {[%clk 01:26:16]} {[%emt 00:01:45]} 9. cxd4
{[%clk 01:29:29]} {[%emt 00:00:30]} Nxd4 {[%clk 01:23:54]} {[%emt 00:02:51]} 10.
Nxd4 {[%clk 01:28:29]} {[%emt 00:01:31]} exd4 {[%clk 01:24:01]} {[%emt
00:00:22]} 11. Qxd4 {[%clk 01:25:55]} {[%emt 00:03:04]} Nd7 {[%clk 01:19:11]}
{[%emt 00:05:20]} 12. Rd1 {[%clk 01:22:21]} {[%emt 00:04:02]} Nb6 {[%clk
01:16:46]} {[%emt 00:02:58]} 13. Nb5 {[%clk 01:16:07]} {[%emt 00:06:43]} d5
{[%clk 01:11:58]} {[%emt 00:05:18]} 14. exd5 {[%clk 01:13:36]} {[%emt
00:03:02]} Bf6 {[%clk 01:11:55]} {[%emt 00:00:33]} 15. Qd3 {[%clk 01:11:56]}
{[%emt 00:02:08]} a6 {[%clk 01:11:01]} {[%emt 00:01:26]} 16. Nc3 {[%clk
01:10:59]} {[%emt 00:01:26]} g6 {[%clk 01:07:04]} {[%emt 00:04:27]} 17. Be3
{[%clk 01:07:32]} {[%emt 00:03:58]} Bf5 {[%clk 01:02:20]} {[%emt 00:05:13]} 18.
Be4 {[%clk 01:04:16]} {[%emt 00:03:47]} Bxe4 {[%clk 01:01:06]} {[%emt
00:01:44]} 19. Nxe4 {[%clk 01:03:27]} {[%emt 00:01:18]} Nd7 {[%clk 00:57:03]}
{[%emt 00:04:33]} 20. Nxf6+ {[%clk 00:56:45]} {[%emt 00:07:13]} Qxf6 {[%clk
00:55:23]} {[%emt 00:02:09]} 21. Bd4 {[%clk 00:56:56]} {[%emt 00:00:19]} Qd6
{[%clk 00:53:47]} {[%emt 00:02:05]} 22. Bc3 {[%clk 00:56:45]} {[%emt 00:00:42]}
f6 {[%clk 00:48:23]} {[%emt 00:05:54]} 23. h4 {[%clk 00:52:43]} {[%emt
00:04:32]} Ne5 {[%clk 00:48:32]} {[%emt 00:00:20]} 24. Bxe5 {[%clk 00:50:19]}
{[%emt 00:02:55]} fxe5 {[%clk 00:47:56]} {[%emt 00:01:06]} 25. Rd2 {[%clk
00:49:49]} {[%emt 00:01:00]} Rf7 {[%clk 00:48:04]} {[%emt 00:00:22]} 26. Rc1
{[%clk 00:50:00]} {[%emt 00:00:19]} Raf8 {[%clk 00:48:02]} {[%emt 00:00:32]} 27.
Qe4 {[%clk 00:47:59]} {[%emt 00:02:30]} Rc7 {[%clk 00:44:26]} {[%emt 00:04:08]}
28. Rxc7 {[%clk 00:47:58]} {[%emt 00:00:31]} Qxc7 {[%clk 00:44:45]} {[%emt
00:00:11]} 29. Rc2 {[%clk 00:47:56]} {[%emt 00:00:32]} Qd6 {[%clk 00:44:29]}
{[%emt 00:00:46]} 30. b4 {[%clk 00:48:02]} {[%emt 00:00:23]} Rd8 {[%clk
00:44:35]} {[%emt 00:00:24]} 31. Rc5 {[%clk 00:47:38]} {[%emt 00:00:54]} Kg7
{[%clk 00:43:40]} {[%emt 00:01:25]} 32. a4 {[%clk 00:45:26]} {[%emt 00:02:43]}
h6 {[%clk 00:43:10]} {[%emt 00:00:59]} 33. a5 {[%clk 00:45:16]} {[%emt
00:00:41]} Rf8 {[%clk 00:43:02]} {[%emt 00:00:37]} 34. Kg2 {[%clk 00:44:11]}
{[%emt 00:01:35]} Rf7 {[%clk 00:43:16]} {[%emt 00:00:16]} 35. f3 {[%clk
00:43:49]} {[%emt 00:00:53]} Qf6 {[%clk 00:43:19]} {[%emt 00:00:25]} 36. b5
{[%clk 00:42:10]} {[%emt 00:02:10]} Qd6 {[%clk 00:40:03]} {[%emt 00:03:46]} 37.
Qc4 {[%clk 00:40:47]} {[%emt 00:01:53]} axb5 {[%clk 00:39:53]} {[%emt
00:00:40]} 38. Qxb5 {[%clk 00:40:09]} {[%emt 00:01:09]} Qf6 {[%clk 00:39:33]}
{[%emt 00:00:50]} 39. Qd3 {[%clk 00:39:59]} {[%emt 00:00:39]} Qd6 {[%clk
00:36:25]} {[%emt 00:03:39]} 40. Rb5 {[%clk 00:35:09]} {[%emt 00:05:19]} Qa6
{[%clk 00:27:31]} {[%emt 00:09:26]} 41. Qe2 {[%clk 00:30:29]} {[%emt 00:05:05]}
Re7 {[%clk 00:24:22]} {[%emt 00:03:42]} 42. Qb2 {[%clk 00:29:54]} {[%emt
00:00:57]} Kf7 {[%clk 00:22:32]} {[%emt 00:02:29]} 43. Qb3 {[%clk 00:29:31]}
{[%emt 00:00:50]} Kg7 {[%clk 00:22:27]} {[%emt 00:00:37]} 44. Qb4 {[%clk
00:29:28]} {[%emt 00:00:30]} Rd7 {[%clk 00:19:46]} {[%emt 00:03:15]} 45. Qc5
{[%clk 00:27:20]} {[%emt 00:02:33]} Qa8 {[%clk 00:16:52]} {[%emt 00:03:29]} 46.
d6 {[%clk 00:26:00]} {[%emt 00:01:50]} Qe8 {[%clk 00:16:45]} {[%emt 00:00:36]}
47. Qd5 {[%clk 00:24:08]} {[%emt 00:02:22]} Kf6 {[%clk 00:14:28]} {[%emt
00:02:48]} 48. Rxb7 {[%clk 00:24:08]} {[%emt 00:00:29]} Qa8 {[%clk 00:12:57]}
{[%emt 00:02:01]} 49. Rb5 {[%clk 00:21:39]} {[%emt 00:03:00]} Qxd5 {[%clk
00:12:39]} {[%emt 00:00:48]} 50. Rxd5 {[%clk 00:22:01]} {[%emt 00:00:07]} Ke6
{[%clk 00:12:58]} {[%emt 00:00:11]} 51. Rb5 {[%clk 00:21:59]} {[%emt 00:00:33]}
Rxd6 {[%clk 00:12:08]} {[%emt 00:01:20]} 52. Rb6 {[%clk 00:21:10]} {[%emt
00:01:19]} Rxb6 {[%clk 00:12:17]} {[%emt 00:00:21]} 53. axb6 {[%clk 00:21:32]}
{[%emt 00:00:08]} Kd6 {[%clk 00:12:42]} {[%emt 00:00:04]} 54. Kf2 {[%clk
00:21:53]} {[%emt 00:00:10]} 1-0

[Event "Schack-SM 2023: Sverigemastarklassen"]
[Site "Helsingborg Arena, Mellersta Stenbocksgatan 14, Helsingborg, Sweden"]
[Date "2023.07.02"]
[Round "2.4"]
[White "Ernst, Thomas"]
[Black "Pantzar, Milton"]
[Result "1/2-1/2"]
[TimeControl "90 minutes for 40 moves + 30 minutes for the rest of the game + 30 seconds per move from move one."]
[WhiteTitle "GM"]
[BlackTitle "IM"]
[WhiteElo "2288"]
[BlackElo "2442"]

1. e4 {[%clk 01:30:54]} {[%emt 00:00:05]} c6 {[%clk 01:30:50]} {[%emt
00:00:10]} 2. d4 {[%clk 01:31:16]} {[%emt 00:00:08]} d5 {[%clk 01:31:12]}
{[%emt 00:00:08]} 3. Nd2 {[%clk 01:31:37]} {[%emt 00:00:08]} dxe4 {[%clk
01:31:33]} {[%emt 00:00:10]} 4. Nxe4 {[%clk 01:32:01]} {[%emt 00:00:06]} Nf6
{[%clk 01:31:49]} {[%emt 00:00:14]} 5. Nxf6+ {[%clk 01:32:16]} {[%emt
00:00:15]} exf6 {[%clk 01:32:11]} {[%emt 00:00:08]} 6. c3 {[%clk 01:32:28]}
{[%emt 00:00:18]} Bd6 {[%clk 01:32:21]} {[%emt 00:00:20]} 7. Bd3 {[%clk
01:32:44]} {[%emt 00:00:14]} O-O {[%clk 01:32:43]} {[%emt 00:00:08]} 8. Qc2
{[%clk 01:32:41]} {[%emt 00:00:32]} Re8+ {[%clk 01:33:05]} {[%emt 00:00:09]} 9.
Ne2 {[%clk 01:32:56]} {[%emt 00:00:14]} h5 {[%clk 01:33:06]} {[%emt 00:00:29]}
10. O-O {[%clk 01:32:41]} {[%emt 00:00:45]} h4 {[%clk 01:33:15]} {[%emt
00:00:22]} 11. Be3 {[%clk 01:25:34]} {[%emt 00:07:36]} h3 {[%clk 01:29:33]}
{[%emt 00:04:12]} 12. g3 {[%clk 01:25:45]} {[%emt 00:00:20]} Na6 {[%clk
01:22:54]} {[%emt 00:07:10]} 13. a3 {[%clk 01:19:06]} {[%emt 00:07:09]} Nc7
{[%clk 01:19:01]} {[%emt 00:04:23]} 14. c4 {[%clk 01:19:15]} {[%emt 00:00:21]}
Ne6 {[%clk 01:12:59]} {[%emt 00:06:31]} 15. Rfe1 {[%clk 01:16:53]} {[%emt
00:02:51]} Ng5 {[%clk 01:03:46]} {[%emt 00:09:44]} 16. Bxg5 {[%clk 01:16:49]}
{[%emt 00:00:34]} fxg5 {[%clk 01:04:11]} {[%emt 00:00:05]} 17. Nc3 {[%clk
01:16:38]} {[%emt 00:00:40]} Bd7 {[%clk 00:49:34]} {[%emt 00:15:07]} 18. Bh7+
{[%clk 01:10:17]} {[%emt 00:06:51]} Kh8 {[%clk 00:38:22]} {[%emt 00:11:43]} 19.
Bf5 {[%clk 01:10:39]} {[%emt 00:00:08]} g4 {[%clk 00:31:17]} {[%emt 00:07:35]}
20. Re4 {[%clk 00:50:45]} {[%emt 00:20:23]} Qc8 {[%clk 00:20:08]} {[%emt
00:11:40]} 21. Bxd7 {[%clk 00:49:17]} {[%emt 00:01:58]} Qxd7 {[%clk 00:20:27]}
{[%emt 00:00:12]} 22. Rae1 {[%clk 00:49:38]} {[%emt 00:00:08]} f5 {[%clk
00:17:59]} {[%emt 00:02:59]} 23. R4e2 {[%clk 00:48:18]} {[%emt 00:01:48]} Bf8
{[%clk 00:11:37]} {[%emt 00:06:53]} 24. d5 {[%clk 00:44:38]} {[%emt 00:04:09]}
Rxe2 {[%clk 00:09:58]} {[%emt 00:02:09]} 25. Qxe2 {[%clk 00:44:53]} {[%emt
00:00:14]} Rd8 {[%clk 00:08:19]} {[%emt 00:02:09]} 26. Kf1 {[%clk 00:40:44]}
{[%emt 00:04:39]} cxd5 {[%clk 00:03:50]} {[%emt 00:05:01]} 27. cxd5 {[%clk
00:40:33]} {[%emt 00:00:41]} Bc5 {[%clk 00:03:14]} {[%emt 00:01:06]} 28. Qe5
{[%clk 00:36:54]} {[%emt 00:04:07]} b5 {[%clk 00:02:48]} {[%emt 00:00:58]} 29.
b4 {[%clk 00:34:38]} {[%emt 00:02:45]} Bd6 {[%clk 00:02:09]} {[%emt 00:01:10]}
30. Qe6 {[%clk 00:34:22]} {[%emt 00:00:44]} a6 {[%clk 00:01:44]} {[%emt
00:00:57]} 31. Qg6 {[%clk 00:29:30]} {[%emt 00:05:19]} Qc8 {[%clk 00:02:02]}
{[%emt 00:00:15]} 32. Ne2 {[%clk 00:27:01]} {[%emt 00:02:58]} Be5 {[%clk
00:02:04]} {[%emt 00:00:28]} 33. Nf4 {[%clk 00:26:09]} {[%emt 00:01:21]} Qc4+
{[%clk 00:02:00]} {[%emt 00:00:35]} 34. Kg1 {[%clk 00:26:29]} {[%emt 00:00:09]}
Qc3 {[%clk 00:02:15]} {[%emt 00:00:16]} 35. Kf1 {[%clk 00:26:04]} {[%emt
00:00:55]} Qc4+ {[%clk 00:02:43]} {[%emt 00:00:03]} 36. Kg1 {[%clk 00:26:21]}
{[%emt 00:00:12]} Qc3 {[%clk 00:01:32]} {[%emt 00:01:41]} 37. Kf1 {[%clk
00:26:30]} {[%emt 00:00:20]} Bxf4 {[%clk 00:01:01]} {[%emt 00:01:01]} 38. gxf4
{[%clk 00:26:40]} {[%emt 00:00:20]} Rf8 {[%clk 00:00:44]} {[%emt 00:00:47]} 39.
Re8 {[%clk 00:23:42]} {[%emt 00:03:27]} Qd3+ {[%clk 00:00:46]} {[%emt
00:00:28]} 40. Ke1 {[%clk 00:23:59]} {[%emt 00:00:13]} Qc3+ {[%clk 00:00:51]}
{[%emt 00:00:26]} 41. Kf1 {[%clk 00:22:46]} {[%emt 00:01:41]} Qc1+ {[%clk
00:15:44]} {[%emt 00:15:38]} 42. Ke2 {[%clk 00:52:52]} {[%emt 00:00:23]} Qb2+
{[%clk 00:15:58]} {[%emt 00:00:17]} 43. Kf1 {[%clk 00:51:33]} {[%emt 00:01:47]}
Qb1+ {[%clk 00:15:42]} {[%emt 00:00:48]} 44. Ke2 {[%clk 00:51:50]} {[%emt
00:00:12]} Qc2+ {[%clk 00:16:07]} {[%emt 00:00:06]} 45. Ke1 {[%clk 00:51:13]}
{[%emt 00:01:05]} Qb1+ {[%clk 00:15:17]} {[%emt 00:01:22]} 46. Ke2 {[%clk
00:51:09]} {[%emt 00:00:31]} Qa2+ {[%clk 00:15:37]} {[%emt 00:00:12]} 47. Kf1
{[%clk 00:50:04]} {[%emt 00:01:31]} Qc4+ {[%clk 00:15:38]} {[%emt 00:00:32]} 48.
Ke1 {[%clk 00:50:09]} {[%emt 00:00:24]} Qc1+ {[%clk 00:15:49]} {[%emt
00:00:21]} 49. Ke2 {[%clk 00:50:23]} {[%emt 00:00:16]} Qc2+ {[%clk 00:16:13]}
{[%emt 00:00:07]} 50. Ke1 {[%clk 00:50:19]} {[%emt 00:00:32]} 1/2-1/2

[Event "Schack-SM 2023: Mastarklassen-elit"]
[Site "Helsingborg Arena, Mellersta Stenbocksgatan 14, Helsingborg, Sweden"]
[Date "2023.07.02"]
[Round "2.3"]
[White "Thorn, Eric"]
[Black "Soderstrom, Adrian"]
[Result "1-0"]
[TimeControl "90 minutes for 40 moves + 30 minutes for the rest of games + 30 seconds per move from move one."]
[WhiteTitle "FM"]
[BlackTitle "FM"]
[WhiteElo "2379"]
[BlackElo "2311"]

1. c4 {[%clk 01:30:56]} {[%emt 00:00:04]} c6 {[%clk 01:30:10]} {[%emt
00:00:50]} 2. Nf3 {[%clk 01:31:11]} {[%emt 00:00:15]} d5 {[%clk 01:30:25]}
{[%emt 00:00:15]} 3. g3 {[%clk 01:31:33]} {[%emt 00:00:08]} dxc4 {[%clk
01:25:17]} {[%emt 00:05:38]} 4. Bg2 {[%clk 01:30:55]} {[%emt 00:01:08]} Nd7
{[%clk 01:25:08]} {[%emt 00:00:39]} 5. Qc2 {[%clk 01:30:40]} {[%emt 00:00:45]}
Nb6 {[%clk 01:25:27]} {[%emt 00:00:11]} 6. Na3 {[%clk 01:30:42]} {[%emt
00:00:28]} Qd5 {[%clk 01:23:51]} {[%emt 00:02:05]} 7. b3 {[%clk 01:31:04]}
{[%emt 00:00:08]} cxb3 {[%clk 01:22:35]} {[%emt 00:01:47]} 8. axb3 {[%clk
01:31:14]} {[%emt 00:00:20]} Nf6 {[%clk 01:18:03]} {[%emt 00:05:01]} 9. Nc4
{[%clk 01:29:25]} {[%emt 00:02:20]} Qd8 {[%clk 01:06:03]} {[%emt 00:12:30]} 10.
O-O {[%clk 01:21:37]} {[%emt 00:08:19]} g6 {[%clk 01:04:55]} {[%emt 00:01:38]}
11. Bb2 {[%clk 01:01:13]} {[%emt 00:20:54]} Bg7 {[%clk 01:01:06]} {[%emt
00:04:18]} 12. e4 {[%clk 00:58:11]} {[%emt 00:03:32]} O-O {[%clk 00:57:03]}
{[%emt 00:04:33]} 13. d4 {[%clk 00:54:44]} {[%emt 00:03:56]} Be6 {[%clk
00:41:08]} {[%emt 00:16:25]} 14. Na5 {[%clk 00:53:39]} {[%emt 00:01:36]} Rb8
{[%clk 00:32:58]} {[%emt 00:08:39]} 15. h3 {[%clk 00:43:05]} {[%emt 00:11:04]}
Qc8 {[%clk 00:27:05]} {[%emt 00:06:23]} 16. Kh2 {[%clk 00:43:17]} {[%emt
00:00:18]} h6 {[%clk 00:26:38]} {[%emt 00:00:57]} 17. Ne5 {[%clk 00:35:06]}
{[%emt 00:08:42]} Nbd7 {[%clk 00:13:04]} {[%emt 00:14:03]} 18. Nd3 {[%clk
00:32:02]} {[%emt 00:03:34]} Ne8 {[%clk 00:08:54]} {[%emt 00:04:40]} 19. Rfc1
{[%clk 00:30:53]} {[%emt 00:01:38]} Nd6 {[%clk 00:05:06]} {[%emt 00:04:19]} 20.
Nf4 {[%clk 00:25:01]} {[%emt 00:06:23]} Nb6 {[%clk 00:04:39]} {[%emt 00:00:56]}
21. Qe2 {[%clk 00:24:04]} {[%emt 00:01:27]} Bd7 {[%clk 00:03:29]} {[%emt
00:01:41]} 22. e5 {[%clk 00:23:32]} {[%emt 00:01:02]} Nb5 {[%clk 00:02:54]}
{[%emt 00:01:05]} 23. d5 {[%clk 00:23:49]} {[%emt 00:00:13]} e6 {[%clk
00:01:21]} {[%emt 00:02:02]} 24. dxc6 {[%clk 00:22:45]} {[%emt 00:01:35]} bxc6
{[%clk 00:01:49]} 25. Nxc6 {[%clk 00:22:43]} {[%emt 00:00:33]} Bxc6 {[%clk
00:00:53]} {[%emt 00:01:27]} 26. Rxc6 {[%clk 00:23:07]} {[%emt 00:00:06]} Nc7
{[%clk 00:00:42]} {[%emt 00:00:40]} 27. Rac1 {[%clk 00:19:37]} {[%emt
00:03:59]} Nba8 {[%clk 00:00:39]} {[%emt 00:00:33]} 28. Ba3 {[%clk 00:19:42]}
{[%emt 00:00:25]} Rd8 {[%clk 00:00:33]} {[%emt 00:00:37]} 29. Bd6 {[%clk
00:19:58]} {[%emt 00:00:14]} Rd7 {[%clk 00:00:42]} {[%emt 00:00:21]} 30. Qc2
{[%clk 00:19:37]} {[%emt 00:00:50]} Qd8 {[%clk 00:00:32]} {[%emt 00:00:41]} 31.
Rc4 {[%clk 00:11:09]} {[%emt 00:08:58]} Nd5 {[%clk 00:00:32]} {[%emt 00:00:31]}
32. Bxb8 {[%clk 00:11:12]} {[%emt 00:00:26]} 1-0

[Event "Schack-SM 2023: Mastarklassen"]
[Site "Helsingborg Arena, Mellersta Stenbocksgatan 14, Helsingborg, Sweden"]
[Date "2023.07.02"]
[Round "2.5"]
[White "Mardell, Jimmy"]
[Black "Soppela, Toni"]
[Result "1-0"]
[TimeControl "90 minutes for 40 moves + 30 minutes for the rest of games + 30 seconds per move from move one."]
[WhiteElo "2160"]
[BlackElo "2032"]

1. d4 {[%clk 01:30:57]} {[%emt 00:00:03]} Nf6 {[%clk 01:30:29]} {[%emt
00:00:30]} 2. c4 {[%clk 01:31:20]} {[%emt 00:00:08]} c5 {[%clk 01:30:41]}
{[%emt 00:00:18]} 3. d5 {[%clk 01:31:37]} {[%emt 00:00:14]} e6 {[%clk
01:30:48]} {[%emt 00:00:22]} 4. Nc3 {[%clk 01:31:51]} {[%emt 00:00:16]} exd5
{[%clk 01:31:06]} {[%emt 00:00:12]} 5. cxd5 {[%clk 01:32:16]} {[%emt 00:00:05]}
d6 {[%clk 01:31:28]} {[%emt 00:00:07]} 6. e4 {[%clk 01:32:27]} {[%emt
00:00:19]} g6 {[%clk 01:31:28]} {[%emt 00:00:30]} 7. Nge2 {[%clk 01:32:23]}
{[%emt 00:00:35]} Bg7 {[%clk 01:30:07]} {[%emt 00:01:50]} 8. Ng3 {[%clk
01:32:31]} {[%emt 00:00:22]} a6 {[%clk 01:28:40]} {[%emt 00:01:57]} 9. a4
{[%clk 01:32:29]} {[%emt 00:00:32]} Nbd7 {[%clk 01:27:42]} {[%emt 00:01:27]} 10.
Be2 {[%clk 01:31:41]} {[%emt 00:01:19]} h5 {[%clk 01:24:40]} {[%emt 00:03:31]}
11. O-O {[%clk 01:26:26]} {[%emt 00:05:46]} Ng4 {[%clk 01:21:18]} {[%emt
00:03:52]} 12. h3 {[%clk 00:57:35]} {[%emt 00:29:22]} Bd4 {[%clk 01:07:06]}
{[%emt 00:14:41]} 13. Nh1 {[%clk 00:37:34]} {[%emt 00:20:30]} Nde5 {[%clk
01:04:31]} {[%emt 00:03:06]} 14. Bf4 {[%clk 00:19:49]} {[%emt 00:18:15]} g5
{[%clk 00:59:00]} {[%emt 00:06:01]} 15. Bd2 {[%clk 00:20:15]} {[%emt 00:00:05]}
Qf6 {[%clk 00:48:32]} {[%emt 00:10:57]} 16. Qc1 {[%clk 00:19:34]} {[%emt
00:01:11]} Qg6 {[%clk 00:45:17]} {[%emt 00:03:45]} 17. Ra3 {[%clk 00:14:02]}
{[%emt 00:06:02]} Bd7 {[%clk 00:43:50]} {[%emt 00:01:57]} 18. Ng3 {[%clk
00:09:34]} {[%emt 00:06:00]} h4 {[%clk 00:25:06]} 19. Nf5 {[%clk 00:09:34]}
{[%emt 00:18:41]} Bxf5 {[%emt 00:00:34]} 20. exf5 {[%clk 00:09:58]} {[%emt
00:00:03]} Qxf5 {[%emt 00:00:28]} 21. Bxg4 {[%clk 00:09:30]} {[%emt 00:00:46]}
Nxg4 {[%clk 00:24:37]} {[%emt 00:01:12]} 22. hxg4 {[%clk 00:09:43]} {[%emt
00:00:18]} Qxg4 {[%clk 00:23:37]} {[%emt 00:01:29]} 23. Qe1+ {[%clk 00:06:30]}
{[%emt 00:03:44]} Kf8 {[%clk 00:17:50]} {[%emt 00:06:16]} 24. Qe4 {[%clk
00:06:31]} {[%emt 00:00:29]} Qd7 {[%clk 00:18:00]} {[%emt 00:00:19]} 25. Re1
{[%clk 00:06:06]} {[%emt 00:00:57]} h3 {[%clk 00:15:59]} {[%emt 00:02:31]} 26.
Bxg5 {[%clk 00:04:50]} {[%emt 00:01:46]} Rh5 {[%clk 00:14:51]} {[%emt
00:01:36]} 27. Qe7+ {[%clk 00:01:48]} {[%emt 00:03:33]} Qxe7 {[%clk 00:15:17]}
{[%emt 00:00:05]} 28. Bxe7+ {[%clk 00:02:15]} {[%emt 00:00:02]} Kg7 {[%clk
00:15:38]} {[%emt 00:00:09]} 29. Bxd6 {[%clk 00:02:42]} {[%emt 00:00:04]} h2+
{[%clk 00:15:21]} {[%emt 00:00:46]} 30. Kh1 {[%clk 00:02:10]} {[%emt 00:01:02]}
Bxf2 {[%clk 00:15:40]} {[%emt 00:00:11]} 31. g4 {[%clk 00:01:32]} {[%emt
00:01:09]} Rh6 {[%clk 00:13:07]} {[%emt 00:03:02]} 32. Re2 {[%clk 00:01:23]}
{[%emt 00:00:39]} Bg1 {[%clk 00:12:54]} {[%emt 00:00:43]} 33. Be7 {[%clk
00:01:25]} {[%emt 00:00:28]} c4 {[%clk 00:12:42]} {[%emt 00:00:42]} 34. a5
{[%clk 00:01:03]} {[%emt 00:00:52]} Rb8 {[%clk 00:12:22]} {[%emt 00:00:50]} 35.
Ra4 {[%clk 00:01:03]} {[%emt 00:00:30]} b5 {[%clk 00:12:04]} {[%emt 00:00:48]}
36. axb6 {[%clk 00:01:27]} {[%emt 00:00:05]} Rhxb6 {[%clk 00:12:26]} {[%emt
00:00:08]} 37. Rxc4 {[%clk 00:01:37]} {[%emt 00:00:20]} Rxb2 {[%clk 00:12:50]}
{[%emt 00:00:07]} 38. Rxb2 {[%clk 00:01:37]} {[%emt 00:00:30]} Rxb2 {[%clk
00:13:19]} 39. Bc5 {[%clk 00:00:44]} {[%emt 00:01:23]} Bxc5 40. Rxc5 {[%clk
00:01:12]} Rd2 {[%clk 00:03:41]} {[%emt 00:08:51]} 41. Ra5 {[%clk 00:18:34]}
{[%emt 00:13:08]} Rc2 {[%clk 00:30:53]} {[%emt 00:03:18]} 42. Ne4 {[%clk
00:14:35]} {[%emt 00:04:29]} Rc4 {[%clk 00:25:52]} {[%emt 00:05:31]} 43. Ng3
{[%clk 00:07:25]} {[%emt 00:07:40]} Rxg4 {[%clk 00:25:37]} {[%emt 00:00:45]} 44.
Kxh2 {[%clk 00:07:49]} {[%emt 00:00:06]} Rg6 {[%clk 00:20:14]} {[%emt
00:04:26]} 45. Ne4 Rb6 {[%emt 00:07:55]} 46. d6 {[%clk 00:02:49]} {[%emt
00:00:02]} Kf8 {[%clk 00:19:41]} {[%emt 00:01:03]} 47. Rd5 {[%clk 00:02:06]}
{[%emt 00:01:13]} Rb5 {[%clk 00:18:13]} {[%emt 00:01:59]} 48. Rd4 {[%clk
00:02:14]} {[%emt 00:00:21]} f5 {[%emt 00:02:25]} 49. d7 {[%clk 00:02:10]}
{[%emt 00:00:31]} 1-0

[ePGN "0.1;DGT LiveChess/2.2.5"]